fUSD/lending_fUSD_20260315
["ID","MTS","AMOUNT","RATE_DAILY","PERIOD"]
[408411504,1773575433398,-294.789,0.00030682,2]
[408411505,1773575433407,-3755.0,0.00030682,2]
[408411506,1773575433416,-425.351,0.00030682,2]
[408411507,1773575433425,-170.7,0.000307,7]
[408411508,1773575433436,-1059.51,0.00030702,2]
[408411509,1773575433445,-2259.69119544,0.0003073,2]
[408411510,1773575433454,-259.77,0.00031317,2]
[408411511,1773575433463,-153.19771634,0.00031344,2]
[408411512,1773575433473,-2000.0,0.0003168,2]
[408411513,1773575433482,-7322.0,0.00032,120]
[408411514,1773575433491,-5828.92123849,0.00032196,62]
[408411515,1773575433502,-2259.69119544,0.00032447,2]
[408411516,1773575433513,-2000.0,0.000325,2]
[408411517,1773575433526,-519.0,0.0003275,16]
[408411518,1773575433536,-780.24,0.000329,14]
[408411519,1773575433545,-154.0,0.00033,30]
[408411520,1773575433555,-825.5,0.00033,30]
[408411521,1773575433563,-3905.92,0.00033228,2]
[408411522,1773575433572,-1043.0,0.00033682,2]
[408411523,1773575433581,-414.0,0.00033682,2]
[408411524,1773575433590,-6119.31134631,0.0003373,69]
[408411525,1773575433786,-1198.06,0.00034,120]
[408411526,1773575433798,-154.0,0.00034,30]
[408411527,1773575433807,-2259.69119544,0.00034163,2]
[408411528,1773575433816,-150.0,0.0003445,5]
[408411529,1773575433825,-500.0,0.00034822,2]
[408411530,1773575433835,-151.1911095,0.00034998,5]
[408411531,1773575433843,-154.0,0.00035,30]
[408411532,1773575433852,-160.4878236,0.00035102,2]
[408411533,1773575433861,-6328.87606196,0.00035264,78]
[408411534,1773575433870,-153.19771634,0.0003539,2]
[408411535,1773575433879,-2022.0,0.000354,7]
[408411536,1773575433888,-451.53,0.00035616,14]
[408411537,1773575433897,-151.49796693,0.00035616,20]
[408411538,1773575433907,-367.29187751,0.00035616,7]
[408411539,1773575433919,-190.41188909,0.00035616,7]
[408411540,1773575433928,-557.7037666,0.00035616,7]
[408411541,1773575433937,-557.7037666,0.00035616,7]
[408411542,1773575433946,-557.7037666,0.00035616,7]
[408411543,1773575433955,-557.7037666,0.00035616,7]
[408411544,1773575433964,-557.7037666,0.00035616,7]
[408411545,1773575433973,-557.7037666,0.00035616,7]
[408411546,1773575433982,-557.7037666,0.00035616,7]
[408411547,1773575433991,-557.7037666,0.00035616,7]
[408411548,1773575434000,-557.7037666,0.00035616,7]
[408411549,1773575434009,-557.7037666,0.00035616,7]
[408411550,1773575434019,-557.7037666,0.00035616,7]
[408411551,1773575434028,-557.7037666,0.00035616,7]
[408411552,1773575434037,-557.7037666,0.00035616,7]
[408411553,1773575434046,-557.7037666,0.00035616,7]
[408411554,1773575434055,-557.7037666,0.00035616,7]
[408411555,1773575434067,-557.7037666,0.00035616,7]
[408411556,1773575434076,-585.58895491,0.00035616,7]
[408411557,1773575434086,-585.58895491,0.00035616,7]
[408411558,1773575434098,-585.58895491,0.00035616,7]
[408411559,1773575434107,-585.58895491,0.00035616,7]
[408411560,1773575434116,-585.58895491,0.00035616,7]
[408411561,1773575434126,-585.58895491,0.00035616,7]
[408411562,1773575434135,-500.0,0.00035616,7]
[408411563,1773575434144,-291.17076125,0.00035616,7]
[408411564,1773575434154,-2000.0,0.0003564,2]
[408411565,1773575434163,-780.24,0.000357,14]
[408411566,1773575434174,-469.87233333,0.000357,7]
[408411567,1773575434184,-152.74,0.0003576,2]
[408411568,1773575434193,-2259.69119544,0.0003588,2]
[408411569,1773575434203,-451.53,0.0003589,14]
[408411570,1773575434212,-154.0,0.00036,30]
[408411571,1773575434221,-451.53,0.00036164,14]
[408411572,1773575434235,-2000.0,0.000362,2]
[408411573,1773575434245,-825.5,0.000362,30]
[408411574,1773575434255,-451.53,0.00036438,14]
[408411575,1773575434265,-1043.0,0.00036682,2]
[408411576,1773575434275,-414.0,0.00036682,2]
[408411577,1773575434284,-451.54,0.00036712,14]
[408411578,1773575434293,-221.5108,0.00036888,7]
[408411579,1773575434303,-154.0,0.00037,30]
[408411580,1773575434312,-186.71753907,0.000372,120]
[408411581,1773575434321,-780.24,0.000374,14]
[408411582,1773575434331,-2259.69119544,0.00037596,2]
[408411583,1773575434340,-154.0,0.00038,30]
[408411584,1773575434350,-2000.0,0.000382,7]
[408411585,1773575434359,-6799.36005043,0.00038331,93]
[408411586,1773575434368,-2192.502,0.00038517,51]
[408411587,1773575434378,-177.885,0.00038517,51]
[408411588,1773575434388,-10009.7434,0.0003895,2]
[408411589,1773575434396,-154.0,0.00039,30]
[408411590,1773575434405,-53543.45,0.00039,120]
[408411591,1773575434415,-25042.76742976,0.00039,120]
[408411592,1773575437862,-386.62084125,0.00019057,2]
[408411593,1773575437871,-257.99038287,0.00027204,2]
[408411594,1773575437880,-48.94877588,0.00039,120]
[408411595,1773575437891,-4908.28379436,0.00039,120]
[408411596,1773575437900,-469.87233333,0.00039,120]
[408411597,1773575437910,-720.0,0.00039,30]
[408411598,1773575437919,-13162.0,0.00039,30]
[408411599,1773575437928,-1700.0,0.00039082,14]
[408411600,1773575437937,-2259.69119544,0.00039313,2]
[408411601,1773575437947,-1300.0,0.00039356,14]
[408411602,1773575437956,-500.0,0.00039356,14]
[408411603,1773575437966,-825.5,0.000394,30]
[408411604,1773575437975,-153.19771634,0.00039437,2]
[408411605,1773575437984,-2500.0,0.000395,30]
[408411606,1773575437993,-1993.598,0.000395,30]
[408411607,1773575438002,-2000.0,0.000396,2]
[408411608,1773575438012,-780.24,0.000396,14]
[408411609,1773575438021,-665.474,0.00039682,2]
[408411610,1773575438035,-1018.66372912,0.00039769,2]
[408411611,1773575438044,-1100.0,0.00039816,45]
[408411612,1773575438052,-7126.34861438,0.00039864,100]
[408411613,1773575438062,-2000.0,0.000399,2]
[408411614,1773575438071,-1700.0,0.00039904,14]
[408411615,1773575438080,-12154.02216183,0.0004,120]
[408411616,1773575438089,-50000.0,0.0004,120]
[408411617,1773575438098,-504.54772587,0.0004,30]
[408411618,1773575438107,-469.87233333,0.0004,120]
[408411619,1773575438118,-151.22,0.0004,2]
[408411620,1773575438127,-151.22,0.0004,2]
[408411621,1773575438136,-151.22,0.0004,2]
[408411622,1773575438145,-151.22,0.0004,2]
[408411623,1773575438154,-151.22,0.0004,2]
[408411624,1773575438163,-151.22,0.0004,2]
[408411625,1773575438172,-151.22,0.0004,2]
[408411626,1773575438181,-151.22,0.0004,2]
[408411628,1773575438191,-1300.0,0.00040178,14]
[408411629,1773575438200,-500.0,0.00040178,14]
[408411632,1773575438209,-469.87233333,0.000402,120]
[408411633,1773575438218,-1000.0,0.00040274,120]
[408411635,1773575438227,-1531.71068699,0.000403,120]
[408411638,1773575438239,-2206.24593183,0.000403,120]
[408411640,1773575438253,-302.92287827,0.000403,120]
[408411643,1773575438273,-1439.48497903,0.000403,120]
[408411658,1773575439964,-386.62084125,0.00021941,2]
[408411659,1773575439974,-7499.72,0.00027397,10]
[408411660,1773575439984,-12613.0,0.000403,60]
[408411661,1773575439995,-660.0,0.000403,60]
[408411662,1773575440004,-50189.4050009,0.000403,120]
[408411663,1773575440014,-1000.0,0.00040371,2]
[408411664,1773575440023,-32957.4135,0.00040371,2]
[408411665,1773575440033,-163.1132,0.00040371,120]
[408411666,1773575440044,-350.0,0.00040401,7]
[408411667,1773575440054,-214.85236077,0.0004047,2]
[408411668,1773575440064,-114570.5597787,0.00040471,2]
[408411669,1773575440074,-2500.0,0.000405,30]
[408411670,1773575440084,-150.0,0.00040544,2]
[408411671,1773575440093,-1000.0,0.00040548,120]
[408411672,1773575440103,-150.0,0.00040599,2]
[408411673,1773575440112,-519.0,0.00040625,23]
[408411674,1773575440122,-158.1686959,0.00040654,2]
[408411675,1773575440131,-825.5,0.000407,30]
[408411676,1773575440141,-176.80719218,0.00040721,2]
[408411677,1773575440151,-732.18235018,0.00040721,2]
[408411678,1773575440160,-4778.53152242,0.00040721,2]
[408411679,1773575440170,-216.75371809,0.00040721,2]
[408411680,1773575440179,-933.0832,0.00040721,2]
[408411681,1773575440188,-1700.0,0.00040726,14]
[408411682,1773575440197,-27629.66630806,0.000408,60]
[408411683,1773575440206,-1600.0,0.000408,14]
[408411684,1773575440216,-993.31366043,0.0004082,2]
[408411685,1773575440224,-993.31366043,0.0004082,2]
[408411686,1773575440233,-993.31366043,0.0004082,2]
[408411687,1773575440242,-993.31366043,0.0004082,2]
[408411688,1773575440252,-993.31366043,0.0004082,2]
[408411689,1773575440261,-993.31366043,0.0004082,2]
[408411690,1773575440270,-993.31366043,0.0004082,2]
[408411691,1773575440280,-993.31366043,0.0004082,2]
[408411692,1773575440289,-993.31366043,0.0004082,2]
[408411693,1773575440299,-993.31366043,0.0004082,2]
[408411694,1773575440309,-993.31366043,0.0004082,2]
[408411695,1773575440318,-993.31366043,0.0004082,2]
[408411696,1773575440328,-993.31366043,0.0004082,2]
[408411697,1773575440341,-993.31366043,0.0004082,2]
[408411698,1773575440350,-894.8322414,0.00040821,2]
[408411699,1773575440360,-500.0,0.00040821,2]
[408411700,1773575440370,-500.0,0.00040821,2]
[408411701,1773575440381,-500.0,0.00040821,2]
[408411702,1773575440391,-500.0,0.00040821,2]
[408411703,1773575440401,-500.0,0.00040821,2]
[408411704,1773575440411,-500.0,0.00040821,2]
[408411705,1773575440421,-500.0,0.00040821,2]
[408411706,1773575440431,-500.0,0.00040821,2]
[408411707,1773575440440,-500.0,0.00040821,2]
[408411708,1773575440450,-500.0,0.00040821,2]
[408411709,1773575440459,-500.0,0.00040821,2]
[408411710,1773575440468,-550.76648267,0.00040821,2]
[408411711,1773575440478,-500.0,0.00040821,2]
[408411712,1773575440488,-500.0,0.00040821,2]
[408411713,1773575440499,-500.0,0.00040821,2]
[408411714,1773575440508,-500.0,0.00040821,2]
[408411715,1773575440520,-500.0,0.00040821,2]
[408411716,1773575440530,-500.0,0.00040821,2]
[408411717,1773575440540,-500.0,0.00040821,2]
[408411718,1773575440550,-500.0,0.00040821,2]
[408411719,1773575440559,-572.01806934,0.00040821,2]
[408411720,1773575440569,-500.0,0.00040821,2]
[408411721,1773575440579,-500.0,0.00040821,2]
[408411722,1773575440588,-500.0,0.00040821,2]
[408411723,1773575440598,-500.0,0.00040821,2]
[408411724,1773575440610,-500.0,0.00040821,2]
[408411725,1773575440619,-500.0,0.00040821,2]
[408411726,1773575440628,-500.0,0.00040821,2]
[408411727,1773575440639,-574.85172267,0.00040821,2]
[408411728,1773575440649,-211.91175615,0.00040821,2]
[408411729,1773575440658,-500.0,0.00040821,2]
[408411730,1773575440667,-304.15159588,0.00040821,2]
[408411731,1773575440676,-500.0,0.00040821,2]
[408411732,1773575440686,-500.0,0.00040821,2]
[408411733,1773575440695,-500.0,0.00040821,2]
[408411734,1773575440714,-500.0,0.00040821,2]
[408411735,1773575440723,-500.0,0.00040821,2]
[408411736,1773575440732,-500.0,0.00040821,2]
[408411737,1773575440742,-500.0,0.00040821,2]
[408411738,1773575440752,-500.0,0.00040821,2]
[408411739,1773575440761,-500.0,0.00040821,2]
[408411740,1773575440770,-500.0,0.00040821,2]
[408411741,1773575440781,-500.0,0.00040821,2]
[408411742,1773575440790,-500.0,0.00040821,2]
[408411745,1773575440800,-500.0,0.00040821,2]
[408411747,1773575440810,-500.0,0.00040821,2]
[408411748,1773575440819,-174.71795945,0.00040821,2]
[408411751,1773575440828,-2244.56,0.00040821,2]
[408411752,1773575440838,-2244.56,0.00040821,2]
[408411753,1773575440847,-2244.56,0.00040821,2]
[408411754,1773575440855,-2244.56,0.00040821,2]
[408411755,1773575440864,-2244.56,0.00040821,2]
[408411756,1773575440873,-2244.56,0.00040821,2]
[408411757,1773575440882,-2244.56,0.00040821,2]
[408411758,1773575440891,-2244.56,0.00040821,2]
[408411759,1773575440900,-2244.56,0.00040821,2]
[408411760,1773575440909,-2244.56,0.00040821,2]
[408411761,1773575440918,-2244.56,0.00040821,2]
[408411762,1773575440927,-2244.56,0.00040821,2]
[408411763,1773575440935,-2244.56,0.00040821,2]
[408411764,1773575440944,-701.57,0.00040821,2]
[408411765,1773575440953,-2244.56,0.00040821,2]
[408411766,1773575440962,-701.57,0.00040821,2]
[408411767,1773575440971,-701.57,0.00040821,2]
[408411768,1773575440980,-701.57,0.00040821,2]
[408411769,1773575440990,-701.57,0.00040821,2]
[408411770,1773575440999,-701.57,0.00040821,2]
[408411771,1773575441009,-701.57,0.00040821,2]
[408411772,1773575441018,-701.57,0.00040821,2]
[408411773,1773575441027,-701.57,0.00040821,2]
[408411774,1773575441036,-701.57,0.00040821,2]
[408411775,1773575441045,-701.57,0.00040821,2]
[408411776,1773575441054,-701.57,0.00040821,2]
[408411777,1773575441063,-701.57,0.00040821,2]
[408411778,1773575441072,-701.57,0.00040821,2]
[408411779,1773575441081,-500.0,0.00040821,2]
[408411780,1773575441090,-500.0,0.00040821,2]
[408411781,1773575441099,-500.0,0.00040821,2]
[408411782,1773575441108,-500.0,0.00040821,2]
[408411783,1773575441118,-500.0,0.00040821,2]
[408411784,1773575441129,-500.0,0.00040821,2]
[408411785,1773575441138,-500.0,0.00040821,2]
[408411786,1773575441147,-500.0,0.00040821,2]
[408411787,1773575441157,-500.0,0.00040821,2]
[408411788,1773575441166,-500.0,0.00040821,2]
[408411789,1773575441175,-500.0,0.00040821,2]
[408411790,1773575441184,-500.0,0.00040821,2]
[408411791,1773575441193,-500.0,0.00040821,2]
[408411792,1773575441202,-500.0,0.00040821,2]
[408411793,1773575441212,-500.0,0.00040821,2]
[408411794,1773575441222,-500.0,0.00040821,2]
[408411795,1773575441231,-500.0,0.00040821,2]
[408411796,1773575441241,-500.0,0.00040821,2]
[408411797,1773575441250,-237.44445126,0.00040821,2]
[408411798,1773575441259,-2775.54,0.00040821,2]
[408411799,1773575441268,-2775.54,0.00040821,2]
[408411800,1773575441277,-2775.54,0.00040821,2]
[408411801,1773575441287,-2775.54,0.00040821,2]
[408411802,1773575441296,-2775.54,0.00040821,2]
[408411803,1773575441305,-2775.54,0.00040821,2]
[408411804,1773575441315,-2775.54,0.00040821,2]
[408411805,1773575441323,-2775.54,0.00040821,2]
[408411806,1773575441333,-163.35064259,0.00040821,2]
[408411807,1773575441341,-500.0,0.00040821,2]
[408411808,1773575441351,-500.0,0.00040821,2]
[408411809,1773575441359,-500.0,0.00040821,2]
[408411810,1773575441369,-500.0,0.00040821,2]
[408411811,1773575441378,-500.0,0.00040821,2]
[408411812,1773575441387,-500.0,0.00040821,2]
[408411813,1773575441396,-500.0,0.00040821,2]
[408411814,1773575441405,-500.0,0.00040821,2]
[408411815,1773575441415,-500.0,0.00040821,2]
[408411816,1773575441424,-500.0,0.00040821,2]
[408411817,1773575441434,-500.0,0.00040821,2]
[408411818,1773575441442,-500.0,0.00040821,2]
[408411819,1773575441452,-500.0,0.00040821,2]
[408411820,1773575441461,-500.0,0.00040821,2]
[408411821,1773575441470,-500.0,0.00040821,2]
[408411822,1773575441613,-500.0,0.00040821,2]
[408411823,1773575441622,-500.0,0.00040821,2]
[408411824,1773575441631,-500.0,0.00040821,2]
[408411825,1773575441640,-500.0,0.00040821,2]
[408411826,1773575441649,-500.0,0.00040821,2]
[408411827,1773575441658,-500.0,0.00040821,2]
[408411828,1773575441667,-500.0,0.00040821,2]
[408411829,1773575441676,-500.0,0.00040821,2]
[408411830,1773575441685,-500.0,0.00040821,2]
[408411831,1773575441695,-500.0,0.00040821,2]
[408411832,1773575441708,-500.0,0.00040821,2]
[408411833,1773575441717,-500.0,0.00040821,2]
[408411834,1773575441726,-500.0,0.00040821,2]
[408411835,1773575441736,-500.0,0.00040821,2]
[408411836,1773575441747,-500.0,0.00040821,2]
[408411837,1773575441756,-500.0,0.00040821,2]
[408411838,1773575441765,-500.0,0.00040821,2]
[408411839,1773575441776,-500.0,0.00040821,2]
[408411840,1773575441787,-500.0,0.00040821,2]
[408411841,1773575441796,-500.0,0.00040821,2]
[408411842,1773575441805,-500.0,0.00040821,2]
[408411843,1773575441814,-500.0,0.00040821,2]
[408411844,1773575441824,-500.0,0.00040821,2]
[408411845,1773575441833,-500.0,0.00040821,2]
[408411846,1773575441842,-500.0,0.00040821,2]
[408411847,1773575441851,-500.0,0.00040821,2]
[408411848,1773575441860,-500.0,0.00040821,2]
[408411849,1773575441870,-500.0,0.00040821,2]
[408411850,1773575441879,-2865.05,0.00040821,2]
[408411851,1773575441888,-2865.05,0.00040821,2]
[408411852,1773575441898,-2865.05,0.00040821,2]
[408411853,1773575441907,-2865.05,0.00040821,2]
[408411854,1773575441916,-2865.05,0.00040821,2]
[408411855,1773575441928,-2865.05,0.00040821,2]
[408411856,1773575441938,-2865.05,0.00040821,2]
[408411857,1773575441948,-2865.05,0.00040821,2]
[408411858,1773575441957,-2865.05,0.00040821,2]
[408411859,1773575441966,-2865.05,0.00040821,2]
[408411860,1773575441976,-500.0,0.00040821,2]
[408411861,1773575441985,-500.0,0.00040821,2]
[408411862,1773575441994,-168.55374989,0.00040821,2]
[408411863,1773575442004,-240.58768846,0.00040821,2]
[408411864,1773575442013,-566.11786591,0.00040821,2]
[408411865,1773575442022,-3190.33,0.00040821,2]
[408411866,1773575442031,-3190.33,0.00040821,2]
[408411867,1773575442040,-3190.33,0.00040821,2]
[408411868,1773575442049,-3190.33,0.00040821,2]
[408411869,1773575442058,-3190.33,0.00040821,2]
[408411870,1773575442067,-3190.33,0.00040821,2]
[408411871,1773575442076,-3190.33,0.00040821,2]
[408411872,1773575442085,-3190.33,0.00040821,2]
[408411873,1773575442094,-3190.33,0.00040821,2]
[408411874,1773575442103,-3190.33,0.00040821,2]
[408411875,1773575442113,-202.8497896,0.00040821,2]
[408411876,1773575442122,-153.39457135,0.00040821,2]
[408411877,1773575442131,-175.90441377,0.00040821,2]
[408411878,1773575442140,-163.17821863,0.00040821,2]
[408411879,1773575442150,-228.24111253,0.00040821,2]
[408411880,1773575442159,-476.41274124,0.00040821,2]
[408411881,1773575442169,-151.38160047,0.00040821,2]
[408411882,1773575442178,-315.30092312,0.00040821,2]
[408411883,1773575442187,-199.88923843,0.00040821,2]
[408411884,1773575442196,-161.96209711,0.00040821,2]
[408411885,1773575442206,-150.01226921,0.00040821,2]
[408411886,1773575442215,-182.87133827,0.00040821,2]
[408411887,1773575442225,-191.38379934,0.00040821,2]
[408411888,1773575442234,-339.14535775,0.00040821,2]
[408411889,1773575442243,-153.85976702,0.00040821,2]
[408411890,1773575442252,-32465.91,0.00040821,2]
[408411891,1773575442262,-32465.91,0.00040821,2]
[408411892,1773575442271,-32465.91,0.00040821,2]
[408411893,1773575442280,-32465.91,0.00040821,2]
[408411894,1773575442289,-32465.91,0.00040821,2]
[408411895,1773575442298,-579.76189079,0.00040821,2]
[408411896,1773575442307,-32465.91,0.00040821,2]
[408411897,1773575442316,-32465.91,0.00040821,2]
[408411898,1773575442325,-227.06278216,0.00040821,2]
[408411899,1773575442335,-32465.91,0.00040821,2]
[408411900,1773575442344,-32465.91,0.00040821,2]
[408411901,1773575442353,-32465.91,0.00040821,2]
[408411902,1773575442362,-1488.13,0.00040821,2]
[408411903,1773575442371,-1488.13,0.00040821,2]
[408411904,1773575442380,-1488.13,0.00040821,2]
[408411905,1773575442390,-1488.13,0.00040821,2]
[408411906,1773575442399,-1488.13,0.00040821,2]
[408411907,1773575442408,-1488.13,0.00040821,2]
[408411908,1773575442417,-1488.13,0.00040821,2]
[408411909,1773575442426,-1488.13,0.00040821,2]
[408411910,1773575442436,-1488.13,0.00040821,2]
[408411911,1773575442446,-1488.13,0.00040821,2]
[408411912,1773575442456,-264.84189015,0.00040821,2]
[408411913,1773575442465,-155.93663346,0.00040821,2]
[408411914,1773575442475,-500.0,0.00040821,2]
[408411915,1773575442485,-500.0,0.00040821,2]
[408411916,1773575442496,-500.0,0.00040821,2]
[408411917,1773575442506,-500.0,0.00040821,2]
[408411918,1773575442516,-301.63510017,0.00040821,2]
[408411919,1773575442525,-500.0,0.00040821,2]
[408411920,1773575442535,-500.0,0.00040821,2]
[408411921,1773575442544,-500.0,0.00040821,2]
[408411922,1773575442553,-500.0,0.00040821,2]
[408411923,1773575442564,-556.60809893,0.00040821,2]
[408411924,1773575442573,-500.0,0.00040821,2]
[408411925,1773575442582,-432.42140551,0.00040821,2]
[408411926,1773575442591,-252.94154909,0.00040821,2]
[408411927,1773575442600,-159.45114557,0.00040821,2]
[408411928,1773575442610,-217.22006854,0.00040821,2]
[408411929,1773575442619,-500.0,0.00040821,2]
[408411930,1773575442628,-500.0,0.00040821,2]
[408411931,1773575442637,-500.0,0.00040821,2]
[408411932,1773575442646,-500.0,0.00040821,2]
[408411933,1773575442656,-500.0,0.00040821,2]
[408411934,1773575442665,-500.0,0.00040821,2]
[408411935,1773575442674,-365.11510576,0.00040821,2]
[408411936,1773575442683,-500.0,0.00040821,2]
[408411937,1773575442692,-500.0,0.00040821,2]
[408411939,1773575442702,-500.0,0.00040821,2]
[408411941,1773575442714,-500.0,0.00040821,2]
[408411942,1773575442724,-500.0,0.00040821,2]
[408411943,1773575442733,-500.0,0.00040821,2]
[408411944,1773575442742,-247.06098965,0.00040821,2]
[408411945,1773575442754,-14456.03,0.00040821,2]
[408411947,1773575442764,-14456.03,0.00040821,2]
[408411949,1773575442772,-397.860216,0.00040821,2]
[408411951,1773575442784,-14456.03,0.00040821,2]
[408411952,1773575442793,-14456.03,0.00040821,2]
[408411953,1773575442804,-14456.03,0.00040821,2]
[408411954,1773575442815,-14456.03,0.00040821,2]
[408411955,1773575442824,-14456.03,0.00040821,2]
[408411956,1773575442834,-14456.03,0.00040821,2]
[408411957,1773575442844,-14456.03,0.00040821,2]
[408411958,1773575442853,-14456.03,0.00040821,2]
[408411959,1773575442863,-188.1878163,0.00040821,2]
[408411960,1773575442872,-500.0,0.00040821,2]
[408411961,1773575442881,-203.18881738,0.00040821,2]
[408411962,1773575442892,-151.40038469,0.00040821,2]
[408411963,1773575442901,-511.85190634,0.00040821,2]
[408411964,1773575442910,-7991.6,0.00040821,2]
[408411965,1773575442919,-7991.6,0.00040821,2]
[408411966,1773575442928,-7991.6,0.00040821,2]
[408411967,1773575442939,-7991.6,0.00040821,2]
[408411968,1773575442948,-7991.6,0.00040821,2]
[408411969,1773575442958,-7991.6,0.00040821,2]
[408411970,1773575442968,-7991.6,0.00040821,2]
[408411971,1773575442979,-863.93989886,0.00040821,2]
[408411972,1773575443119,-570.54789703,0.00040821,2]
[408411973,1773575443130,-3225.30801003,0.00040821,2]
[408411974,1773575443141,-391.5446921,0.00040821,2]
[408411975,1773575443151,-1851.78918685,0.00040821,2]
[408411976,1773575443163,-1088.47031513,0.00040821,2]
[408411977,1773575443174,-7991.6,0.00040821,2]
[408411978,1773575443184,-7991.6,0.00040821,2]
[408411979,1773575443194,-500.0,0.00040821,2]
[408411980,1773575443204,-553.1875,0.00040821,2]
[408411981,1773575443213,-223.44662137,0.00040821,2]
[408411982,1773575443223,-193.81196797,0.00040821,2]
[408411983,1773575443232,-268.64446797,0.00040821,2]
[408411984,1773575443241,-500.0,0.00040821,2]
[408411985,1773575443250,-365.5398065,0.00040821,2]
[408411986,1773575443259,-2005.3,0.00040821,2]
[408411987,1773575443268,-2005.3,0.00040821,2]
[408411988,1773575443277,-215.64187557,0.00040821,2]
[408411989,1773575443286,-2005.3,0.00040821,2]
[408411990,1773575443295,-2005.3,0.00040821,2]
[408411991,1773575443304,-2005.3,0.00040821,2]
[408411992,1773575443313,-2005.3,0.00040821,2]
[408411993,1773575443321,-500.0,0.00040821,2]
[408411994,1773575443330,-255.8769216,0.00040821,2]
[408411995,1773575443340,-2005.3,0.00040821,2]
[408411996,1773575443349,-2005.3,0.00040821,2]
[408411997,1773575443358,-183.97890741,0.00040821,2]
[408411998,1773575443367,-2005.3,0.00040821,2]
[408411999,1773575443376,-2005.3,0.00040821,2]
[408412000,1773575443385,-597.06561373,0.00040821,2]
[408412001,1773575443395,-169.68018462,0.00040821,2]
[408412002,1773575443404,-203.08373655,0.00040821,2]
[408412003,1773575443413,-236.05263024,0.00040821,2]
[408412004,1773575443423,-167.9589031,0.00040821,2]
[408412005,1773575443431,-262.95865244,0.00040821,2]
[408412006,1773575443441,-167.04421083,0.00040821,2]
[408412007,1773575443451,-150.28630004,0.00040821,2]
[408412008,1773575443460,-262.89281088,0.00040821,2]
[408412009,1773575443470,-237.10938699,0.00040821,2]
[408412010,1773575443479,-500.0,0.00040821,2]
[408412011,1773575443488,-500.0,0.00040821,2]
[408412013,1773575443497,-500.0,0.00040821,2]
[408412015,1773575443506,-500.0,0.00040821,2]
[408412017,1773575443515,-500.0,0.00040821,2]
[408412019,1773575443524,-518.12098011,0.00040821,2]
[408412020,1773575443533,-153.98998562,0.00040821,2]
[408412021,1773575443542,-380.37208717,0.00040821,2]
[408412022,1773575443551,-271.27625813,0.00040821,2]
[408412023,1773575443560,-629.44605735,0.00040821,2]
[408412024,1773575443569,-500.0,0.00040821,2]
[408412025,1773575443578,-500.0,0.00040821,2]
[408412026,1773575443587,-500.0,0.00040821,2]
[408412027,1773575443596,-500.0,0.00040821,2]
[408412028,1773575443605,-500.0,0.00040821,2]
[408412029,1773575443615,-206.0329042,0.00040821,2]
[408412030,1773575443624,-500.0,0.00040821,2]
[408412031,1773575443633,-500.0,0.00040821,2]
[408412032,1773575443642,-500.0,0.00040821,2]
[408412033,1773575443651,-511.34396796,0.00040821,2]
[408412034,1773575443660,-480.2405301,0.00040821,2]
[408412035,1773575443669,-631.5189,0.00040821,2]
[408412036,1773575443679,-155.97852354,0.00040821,2]
[408412037,1773575443688,-164.09295615,0.00040821,2]
[408412038,1773575443697,-421.31571649,0.00040821,2]
[408412039,1773575443708,-159.66587462,0.00040821,2]
[408412040,1773575443718,-199.1540608,0.00040821,2]